[Event "Srdja Dragasevic Memorial-A 2024"]
[Site "Cetinje"]
[Date "2024.06.29"]
[Round "9.18"]
[White "Nikolic, Nebojsa"]
[Black "Hart, Alexander"]
[Result "1-0"]
[ECO "B13"]
[WhiteElo "2268"]
[BlackElo "1949"]
[Annotator "RC"]
[PlyCount "121"]
[EventDate "2024.06.23"]
[EventType "swiss"]
[EventCountry "MNE"]
[SourceTitle "playchess.com"]
[Source "ChessBase"]
[SourceQuality "1"]
[TimeControl "40/5400+30:1800+30"]

1. d4 {[%emt 0:00:05]} d5 {[%emt 0:00:41]} 2. Nf3 {[%emt 0:00:08]} Nf6 {[%emt 0:00:08]} 3. Bf4 {[%emt 0:00:06]} c5 {[%emt 0:00:05]} 4. e3 {[%emt 0:00:05]} Nc6 {[%emt 0:00:09]} 5. Nbd2 {[%emt 0:00:06]} cxd4 {[%emt 0:02:34]} 6. exd4 {[%emt 0:00:07]} Bg4 {[%emt 0:05:41]} 7. c3 {[%emt 0:01:21]} e6 {[%emt 0:05:40]} 8. Qb3 {[%emt 0:00:19]} Qb6 {[%emt 0:00:23]} 9. Qxb6 {[%emt 0:02:36]} axb6 {[%emt 0:00:02]} 10. h3 {[%emt 0:01:03]} Bh5 {[%emt 0:01:23]} 11. g4 {[%emt 0:01:41]} Bg6 {[%emt 0:00:02]} 12. Nh4 {[%emt 0:00:07]} Be7 {[%emt 0:11:08]} 13. Bb5 {[%emt 0:01:53]} Bc2 {[%emt 0:05:29]} 14. Ng2 {[%emt 0:19:16]} h6 {[%emt 0:04:17]} 15. Ne3 {[%emt 0:03:12]} Ba4 {[%emt 0:03:03]} 16. Bd3 {[%emt 0:01:29]} Nb8 {[%emt 0:00:59]} 17. Bg3 {[%emt 0:05:50]} Bc6 {[%emt 0:05:01]} 18. f4 {[%emt 0:01:15]} Bd6 {[%emt 0:02:28]} 19. O-O {[%emt 0:02:44]} b5 {[%emt 0:04:13]} 20. a3 {[%emt 0:01:52]} Nbd7 {[%emt 0:00:16]} 21. Rae1 {[%emt 0:00:12]} O-O-O {[%emt 0:06:37]} 22. Nf3 {[%emt 0:03:47]} Rdf8 {[%emt 0:04:42]} 23. Ne5 {[%emt 0:00:20]} Bc7 {[%emt 0:02:22]} 24. f5 {[%emt 0:02:56]} Nxe5 {[%emt 0:03:20]} 25. Bxe5 {[%emt 0:00:22]} Ne8 {[%emt 0:02:00]} 26. Ng2 {[%emt 0:02:07]} Rhg8 {[%emt 0:05:48]} 27. Nf4 {[%emt 0:03:09]} Kd7 {[%emt 0:00:27]} 28. fxe6+ {[%emt 0:00:35]} fxe6 {[%emt 0:00:04]} 29. Nxe6 {[%emt 0:00:34]} Rxf1+ {[%emt 0:00:42]} 30. Kxf1 {[%emt 0:00:19]} Bxe5 {[%emt 0:03:15]} 31. Rxe5 {[%emt 0:00:21]} Nd6 {[%emt 0:01:21]} 32. Bh7 {[%emt 0:04:27]} Rh8 {[%emt 0:00:57]} 33. Bf5 {[%emt 0:00:11]} g5 {[%emt 0:01:47]} 34. Kg2 {[%emt 0:04:09]} Kc8 {[%emt 0:03:22]} 35. Ng7+ {[%emt 0:01:46]} Kb8 {[%emt 0:01:05]} 36. Bd3 {[%emt 0:04:13]} Rf8 {[%emt 0:01:18]} 37. Nf5 {[%emt 0:02:09]} Nf7 {[%emt 0:02:14]} 38. Re6 {[%emt 0:00:38]} Rh8 {[%emt 0:00:30]} 39. Rf6 {[%emt 0:00:51]} Be8 {[%emt 0:01:33]} 40. Ng7 {[%emt 0:00:00]} Nd8 {[%emt 0:00:00]} 41. Nxe8 Rxe8 {[%emt 0:00:26]} 42. Bxb5 {[%emt 0:08:11]} Re1 {[%emt 0:00:34]} 43. Rf1 {[%emt 0:01:11]} Re3 {[%emt 0:00:14]} 44. Bd7 {[%emt 0:00:46]} Kc7 {[%emt 0:00:42]} 45. Bf5 {[%emt 0:00:02]} Kb6 {[%emt 0:02:48]} 46. Rf3 {[%emt 0:00:12]} Re1 {[%emt 0:00:01]} 47. Bd3 {[%emt 0:03:43]} Ka5 {[%emt 0:01:45]} 48. Rf5 {[%emt 0:01:01]} Ne6 {[%emt 0:00:44]} 49. Rxd5+ {[%emt 0:01:14]} b5 {[%emt 0:00:30]} 50. Rxb5+ {[%emt 0:01:24]} Ka4 {[%emt 0:00:03]} 51. Kf2 {[%emt 0:01:18]} Rh1 {[%emt 0:00:59]} 52. Rb4+ {[%emt 0:00:09]} Ka5 {[%emt 0:00:10]} 53. Bf1 {[%emt 0:05:28]} Nf4 {[%emt 0:00:15]} 54. d5 {[%emt 0:00:22]} Rh2+ {[%emt 0:01:01]} 55. Kg3 {[%emt 0:01:45]} Rd2 {[%emt 0:00:20]} 56. Rd4 {[%emt 0:01:13]} Rxb2 {[%emt 0:00:30]} 57. d6 {[%emt 0:01:03]} Rb8 {[%emt 0:00:21]} 58. a4 {[%emt 0:01:04]} Rd8 {[%emt 0:00:31]} 59. Bb5 {[%emt 0:00:22]} Kb6 {[%emt 0:00:01]} 60. d7 {[%emt 0:00:33]} Ka5 {[%emt 0:01:19]} 61. Rd6 {[%emt 0:00:12]} 1-0